fUST/lending_fUST_20250718
["ID","MTS","AMOUNT","RATE_DAILY","PERIOD"]
[372937344,1752814257058,-898.43,0.00017534,2]
[372937345,1752814257068,-3275.21,0.00017534,2]
[372937346,1752814257078,-1144.81,0.00017534,2]
[372937347,1752814257087,-460.0,0.00017534,2]
[372937348,1752814257096,-460.0,0.00017534,2]
[372937349,1752814257106,-899.51,0.00017534,2]
[372937350,1752814257115,-908.6,0.00017534,2]
[372937351,1752814257124,-460.0,0.00017534,2]
[372937352,1752814257134,-460.0,0.00017534,2]
[372937353,1752814257143,-460.0,0.00017534,2]
[372937354,1752814257152,-460.0,0.00017534,2]
[372937355,1752814257162,-460.0,0.00017534,2]
[372937356,1752814257171,-460.0,0.00017534,2]
[372937357,1752814257180,-884.48,0.00017534,2]
[372937358,1752814257189,-460.0,0.00017534,2]
[372937359,1752814257202,-965.48,0.00017534,2]
[372937360,1752814257211,-888.06,0.00017534,2]
[372937361,1752814257222,-766.66,0.00017534,2]
[372937362,1752814257232,-460.0,0.00017534,2]
[372937363,1752814257241,-460.0,0.00017534,2]
[372937364,1752814257251,-460.0,0.00017534,2]
[372937365,1752814257260,-460.0,0.00017534,2]
[372937366,1752814257270,-1451.87,0.00017534,2]
[372937367,1752814257279,-460.0,0.00017534,2]
[372937368,1752814257289,-460.0,0.00017534,2]
[372937369,1752814257299,-460.0,0.00017534,2]
[372937370,1752814257308,-460.0,0.00017534,2]
[372937371,1752814257318,-460.0,0.00017534,2]
[372937372,1752814257328,-789.94,0.00017534,2]
[372937373,1752814257340,-3558.83,0.00017534,2]
[372937374,1752814257350,-1037.24,0.00017534,2]
[372937375,1752814257360,-460.0,0.00017534,2]
[372937376,1752814257370,-652.7,0.00017534,2]
[372937377,1752814257379,-460.0,0.00017534,2]
[372937378,1752814257389,-460.0,0.00017534,2]
[372937379,1752814257398,-5829.63,0.00017534,2]
[372937380,1752814257408,-460.0,0.00017534,2]
[372937381,1752814257417,-460.0,0.00017534,2]
[372937382,1752814257426,-564.52783286,0.00017534,2]
[372937383,1752814257436,-460.0,0.00017534,2]
[372937384,1752814257446,-2475.6,0.00017534,2]
[372937385,1752814257455,-460.0,0.00017534,2]
[372937386,1752814257464,-921.62,0.00017534,2]
[372937387,1752814257475,-460.0,0.00017534,2]
[372937388,1752814257485,-727.58,0.00017534,2]
[372937389,1752814257495,-460.0,0.00017534,2]
[372937390,1752814257504,-2187.72,0.00017534,2]
[372937391,1752814257514,-478.34951911,0.00017534,2]
[372937392,1752814257524,-460.0,0.00017534,2]
[372937393,1752814257534,-1653.45,0.00017534,2]
[372937394,1752814257543,-785.77,0.00017534,2]
[372937395,1752814257553,-460.0,0.00017534,2]
[372937396,1752814257562,-460.0,0.00017534,2]
[372937397,1752814257572,-698.36,0.00017534,2]
[372937398,1752814257582,-1105.74,0.00017534,2]
[372937399,1752814257591,-460.0,0.00017534,2]
[372937400,1752814257601,-822.88,0.00017534,2]
[372937401,1752814257611,-1074.47,0.00017534,2]
[372937402,1752814257620,-656.95,0.00017534,2]
[372937403,1752814257630,-460.0,0.00017534,2]
[372937404,1752814257639,-460.0,0.00017534,2]
[372937405,1752814257648,-460.0,0.00017534,2]
[372937406,1752814257658,-460.0,0.00017534,2]
[372937407,1752814257667,-232.10493919,0.00017534,2]
[372937408,1752814257677,-460.0,0.00017534,2]
[372937409,1752814257686,-1003.73,0.00017534,2]
[372937410,1752814257696,-460.0,0.00017534,2]
[372937411,1752814257810,-460.0,0.00017534,2]
[372937412,1752814257820,-460.0,0.00017534,2]
[372937413,1752814257830,-809.59,0.00017534,2]
[372937414,1752814257839,-774.39,0.00017534,2]
[372937415,1752814257849,-460.0,0.00017534,2]
[372937416,1752814257858,-460.0,0.00017534,2]
[372937417,1752814257867,-575.36,0.00017534,2]
[372937418,1752814257877,-460.0,0.00017534,2]
[372937419,1752814257887,-460.0,0.00017534,2]
[372937420,1752814257896,-460.0,0.00017534,2]
[372937421,1752814257906,-815.73,0.00017534,2]
[372937422,1752814257916,-788.57,0.00017534,2]
[372937423,1752814257926,-3087.49,0.00017534,2]
[372937424,1752814257935,-703.98,0.00017534,2]
[372937425,1752814257945,-733.98,0.00017534,2]
[372937426,1752814257954,-866.64,0.00017534,2]
[372937427,1752814257964,-1531.18,0.00017534,2]
[372937428,1752814257974,-480.23,0.00017534,2]
[372937429,1752814257984,-794.47,0.00017534,2]
[372937430,1752814257994,-7082.82,0.00017534,2]
[372937431,1752814258003,-460.0,0.00017534,2]
[372937432,1752814258013,-2241.65,0.00017534,2]
[372937433,1752814258023,-2622.92,0.00017534,2]
[372937434,1752814258032,-5019.62,0.00017534,2]
[372937435,1752814258041,-460.0,0.00017534,2]
[372937436,1752814258051,-460.0,0.00017534,2]
[372937437,1752814258060,-460.0,0.00017534,2]
[372937438,1752814258069,-361.76100224,0.00017568,2]
[372937439,1752814258079,-1507.5277841,0.00017568,2]
[372937440,1752814258088,-1500.0,0.00017568,2]
[372937441,1752814258100,-500.0,0.00017568,2]
[372937442,1752814258110,-1500.0,0.00017568,2]
[372937443,1752814258119,-1500.0,0.00017568,2]
[372937444,1752814258128,-7402.24045494,0.00017571,2]
[372937445,1752814258138,-217.17818657,0.00017573,2]
[372937446,1752814258148,-532.80144525,0.00017573,2]
[372937447,1752814258158,-500.0,0.00017573,2]
[372937448,1752814258168,-500.96256715,0.00017573,2]
[372937449,1752814258177,-500.44364371,0.00017573,2]
[372937450,1752814258186,-1897.8742469,0.000176,2]
[372937451,1752814258196,-420.0,0.00017641,2]
[372937452,1752814258205,-460.0,0.00017808,2]
[372937453,1752814258216,-463.72926968,0.00017808,2]
[372937454,1752814258225,-460.0,0.00017808,2]
[372937455,1752814258235,-460.0,0.00017808,2]
[372937456,1752814258245,-460.0,0.00017808,2]
[372937457,1752814258254,-460.0,0.00017808,2]
[372937458,1752814258264,-460.0,0.00017808,2]
[372937459,1752814258273,-460.0,0.00017808,2]
[372937460,1752814258283,-418.46886425,0.00017808,2]
[372937461,1752814258292,-460.0,0.00017808,2]
[372937462,1752814258302,-596.30646389,0.00017808,2]
[372937463,1752814258312,-460.0,0.00017808,2]
[372937464,1752814258322,-460.0,0.00017808,2]
[372937465,1752814258331,-460.0,0.00017808,2]
[372937466,1752814258340,-463.3863511,0.00017808,2]
[372937467,1752814258350,-460.0,0.00017808,2]
[372937468,1752814258359,-460.0,0.00017808,2]
[372937469,1752814258369,-460.0,0.00017808,2]
[372937470,1752814258378,-617.58,0.00017808,2]
[372937471,1752814258388,-460.0,0.00017808,2]
[372937472,1752814258397,-460.0,0.00017808,2]
[372937473,1752814258406,-460.0,0.00017808,2]
[372937474,1752814258415,-460.0,0.00017808,2]
[372937475,1752814258426,-363.65431813,0.00017808,2]
[372937476,1752814258438,-198.51874405,0.00017808,2]
[372937477,1752814258447,-460.0,0.00017808,2]
[372937478,1752814258456,-962.22,0.00017808,2]
[372937479,1752814258466,-460.0,0.00017808,2]
[372937480,1752814258475,-996.21,0.00017808,2]
[372937481,1752814258485,-460.0,0.00017808,2]
[372937482,1752814258495,-460.0,0.00017808,2]
[372937483,1752814258504,-460.0,0.00017808,2]
[372937484,1752814258514,-504.97,0.00017808,2]
[372937485,1752814258523,-460.0,0.00017808,2]
[372937486,1752814258533,-460.0,0.00017808,2]
[372937487,1752814258543,-460.0,0.00017808,2]
[372937488,1752814258553,-460.0,0.00017808,2]
[372937489,1752814258563,-460.0,0.00017808,2]
[372937490,1752814258572,-460.0,0.00017808,2]
[372937491,1752814258582,-460.0,0.00017808,2]
[372937492,1752814258591,-460.0,0.00017808,2]
[372937493,1752814258600,-460.0,0.00017808,2]
[372937494,1752814258610,-460.0,0.00017808,2]
[372937495,1752814258619,-471.94,0.00017808,2]
[372937496,1752814258629,-557.15,0.00017808,2]
[372937497,1752814258638,-460.0,0.00017808,2]
[372937498,1752814258647,-460.0,0.00017808,2]
[372937499,1752814258656,-633.99,0.00017808,2]
[372937500,1752814258666,-460.0,0.00017808,2]
[372937501,1752814258675,-480.02,0.00017808,2]
[372937502,1752814258684,-460.0,0.00017808,2]
[372937503,1752814258694,-460.0,0.00017808,2]
[372937504,1752814258704,-745.89,0.00017808,2]
[372937505,1752814258714,-907.33,0.00017808,2]
[372937506,1752814258727,-638.44,0.00017808,2]
[372937507,1752814258736,-161.23742626,0.00017808,2]
[372937508,1752814258746,-1126.45,0.00017808,2]
[372937509,1752814258758,-902.44,0.00017808,2]
[372937510,1752814258768,-460.0,0.00017808,2]
[372937511,1752814258777,-460.0,0.00017808,2]
[372937512,1752814258787,-686.15,0.00017808,2]
[372937513,1752814258798,-460.0,0.00017808,2]
[372937514,1752814258807,-460.0,0.00017808,2]
[372937515,1752814258816,-460.0,0.00017808,2]
[372937516,1752814258826,-460.0,0.00017808,2]
[372937517,1752814258836,-460.0,0.00017808,2]
[372937518,1752814258845,-654.1,0.00017808,2]
[372937519,1752814258859,-555.02,0.00017808,2]
[372937520,1752814258880,-712.9,0.00017808,2]
[372937521,1752814258896,-460.0,0.00017808,2]
[372937522,1752814258906,-465.47,0.00017808,2]
[372937523,1752814258916,-460.0,0.00017808,2]
[372937524,1752814258925,-485.95746534,0.00017808,2]
[372937525,1752814258937,-462.34,0.00017808,2]
[372937526,1752814258948,-429.8433681,0.00017808,2]
[372937527,1752814258957,-460.0,0.00017808,2]
[372937528,1752814258968,-460.0,0.00017808,2]
[372937529,1752814258978,-683.36,0.00017808,2]
[372937530,1752814258987,-460.0,0.00017808,2]
[372937531,1752814258996,-2418.55,0.00017808,2]
[372937532,1752814259006,-460.0,0.00017808,2]
[372937533,1752814259015,-1045.61,0.00017808,2]
[372937534,1752814259025,-460.0,0.00017808,2]
[372937535,1752814259035,-538.01,0.00017808,2]
[372937536,1752814259044,-460.0,0.00017808,2]
[372937537,1752814259053,-460.0,0.00017808,2]
[372937538,1752814259063,-460.0,0.00017808,2]
[372937539,1752814259073,-460.0,0.00017808,2]
[372937540,1752814259082,-560.07,0.00017808,2]
[372937541,1752814259092,-460.0,0.00017808,2]
[372937542,1752814259101,-460.0,0.00017808,2]
[372937543,1752814259110,-460.0,0.00017808,2]
[372937544,1752814259121,-686.49,0.00017808,2]
[372937545,1752814259131,-452.64071847,0.00017808,2]
[372937546,1752814259142,-460.0,0.00017808,2]
[372937547,1752814259153,-460.0,0.00017808,2]
[372937548,1752814259163,-460.0,0.00017808,2]
[372937549,1752814259173,-460.0,0.00017808,2]
[372937550,1752814259183,-883.96,0.00017808,2]
[372937551,1752814259195,-460.0,0.00017808,2]
[372937552,1752814259204,-460.0,0.00017808,2]
[372937553,1752814259213,-460.0,0.00017808,2]
[372937554,1752814259224,-555.31653507,0.00017808,2]
[372937555,1752814259234,-460.0,0.00017808,2]
[372937556,1752814259243,-460.0,0.00017808,2]
[372937557,1752814259253,-1347.37,0.00017808,2]
[372937558,1752814259262,-951.1,0.00017808,2]
[372937559,1752814259273,-460.0,0.00017808,2]
[372937560,1752814259283,-642.72,0.00017808,2]
[372937561,1752814259294,-460.0,0.00017808,2]
[372937562,1752814259304,-336.77170122,0.00017808,2]
[372937563,1752814259314,-335.43509946,0.00017808,2]
[372937564,1752814259323,-460.0,0.00017808,2]
[372937565,1752814259332,-460.0,0.00017808,2]
[372937566,1752814259341,-460.0,0.00017808,2]
[372937567,1752814259351,-460.0,0.00017808,2]
[372937568,1752814259362,-460.0,0.00017808,2]
[372937569,1752814259371,-460.0,0.00017808,2]
[372937570,1752814259381,-855.25,0.00017808,2]
[372937571,1752814259391,-618.09,0.00017808,2]
[372937572,1752814259401,-460.0,0.00017808,2]
[372937573,1752814259410,-4686.52,0.00017808,2]
[372937574,1752814259419,-460.0,0.00017808,2]
[372937575,1752814259429,-460.0,0.00017808,2]
[372937576,1752814259438,-723.7,0.00017808,2]
[372937577,1752814259448,-460.0,0.00017808,2]
[372937578,1752814259457,-460.0,0.00017808,2]
[372937579,1752814259467,-460.0,0.00017808,2]
[372937580,1752814259476,-460.0,0.00017808,2]
[372937581,1752814259486,-460.0,0.00017808,2]
[372937582,1752814259496,-460.0,0.00017808,2]
[372937583,1752814259506,-460.0,0.00017808,2]
[372937584,1752814259515,-460.0,0.00017808,2]
[372937585,1752814259525,-594.21071822,0.00017808,2]
[372937586,1752814259535,-1372.5,0.00017808,2]
[372937587,1752814259545,-460.0,0.00017808,2]
[372937588,1752814259555,-3660.04,0.00017808,2]
[372937589,1752814259772,-898.43,0.00017808,2]
[372937590,1752814259782,-3275.21,0.00017808,2]
[372937591,1752814259792,-1144.81,0.00017808,2]
[372937592,1752814259802,-460.0,0.00017808,2]
[372937593,1752814259812,-460.0,0.00017808,2]
[372937594,1752814259821,-899.51,0.00017808,2]
[372937595,1752814259832,-908.6,0.00017808,2]
[372937596,1752814259841,-460.0,0.00017808,2]
[372937597,1752814259851,-152.87089882,0.00017808,2]
[372937598,1752814259861,-174.61698461,0.00017808,2]
[372937599,1752814259871,-460.0,0.00017808,2]
[372937600,1752814259882,-460.0,0.00017808,2]
[372937601,1752814259892,-460.0,0.00017808,2]
[372937602,1752814259902,-884.48,0.00017808,2]
[372937603,1752814259911,-460.0,0.00017808,2]
[372937604,1752814259921,-965.48,0.00017808,2]
[372937605,1752814259930,-888.06,0.00017808,2]
[372937606,1752814259940,-766.66,0.00017808,2]
[372937607,1752814259949,-460.0,0.00017808,2]
[372937608,1752814259959,-460.0,0.00017808,2]
[372937609,1752814259969,-460.0,0.00017808,2]
[372937610,1752814259978,-460.0,0.00017808,2]
[372937611,1752814259988,-1451.87,0.00017808,2]
[372937612,1752814259997,-460.0,0.00017808,2]
[372937613,1752814260007,-460.0,0.00017808,2]
[372937614,1752814260017,-159.72359436,0.00017808,2]
[372937615,1752814260027,-460.0,0.00017808,2]
[372937616,1752814260036,-460.0,0.00017808,2]
[372937617,1752814260045,-789.94,0.00017808,2]
[372937618,1752814260055,-1037.24,0.00017808,2]
[372937619,1752814260064,-3558.83,0.00017808,2]
[372937620,1752814260074,-460.0,0.00017808,2]
[372937621,1752814260083,-652.7,0.00017808,2]
[372937622,1752814260092,-460.0,0.00017808,2]
[372937623,1752814260101,-460.0,0.00017808,2]
[372937624,1752814260110,-5829.63,0.00017808,2]
[372937625,1752814260119,-460.0,0.00017808,2]
[372937626,1752814260228,-473.23065792,0.00017808,2]
[372937627,1752814260238,-460.0,0.00017808,2]
[372937628,1752814260247,-2475.6,0.00017808,2]
[372937629,1752814260256,-460.0,0.00017808,2]
[372937630,1752814260265,-921.62,0.00017808,2]
[372937631,1752814260275,-460.0,0.00017808,2]
[372937632,1752814260285,-727.58,0.00017808,2]
[372937633,1752814260294,-460.0,0.00017808,2]
[372937634,1752814260304,-2187.72,0.00017808,2]
[372937635,1752814260314,-460.0,0.00017808,2]
[372937636,1752814260323,-1653.45,0.00017808,2]
[372937637,1752814260333,-785.77,0.00017808,2]
[372937638,1752814260342,-460.0,0.00017808,2]
[372937639,1752814260352,-698.36,0.00017808,2]
[372937640,1752814260361,-460.0,0.00017808,2]
[372937641,1752814260370,-1105.74,0.00017808,2]
[372937642,1752814260380,-460.0,0.00017808,2]
[372937643,1752814260389,-822.88,0.00017808,2]
[372937644,1752814260398,-1074.47,0.00017808,2]
[372937645,1752814260407,-656.95,0.00017808,2]
[372937646,1752814260416,-460.0,0.00017808,2]
[372937647,1752814260426,-460.0,0.00017808,2]
[372937648,1752814260435,-460.0,0.00017808,2]
[372937649,1752814260444,-460.0,0.00017808,2]
[372937650,1752814260453,-460.0,0.00017808,2]
[372937651,1752814260462,-1003.73,0.00017808,2]
[372937652,1752814260471,-460.0,0.00017808,2]
[372937653,1752814260480,-460.0,0.00017808,2]
[372937654,1752814260490,-460.0,0.00017808,2]
[372937655,1752814260499,-774.39,0.00017808,2]
[372937656,1752814260509,-809.59,0.00017808,2]
[372937657,1752814260518,-460.0,0.00017808,2]
[372937658,1752814260528,-575.36,0.00017808,2]
[372937659,1752814260538,-460.0,0.00017808,2]
[372937660,1752814260548,-460.0,0.00017808,2]
[372937661,1752814260558,-460.0,0.00017808,2]
[372937662,1752814260567,-460.0,0.00017808,2]
[372937663,1752814260576,-815.73,0.00017808,2]
[372937664,1752814260586,-788.57,0.00017808,2]
[372937665,1752814260595,-3087.49,0.00017808,2]
[372937666,1752814260605,-703.98,0.00017808,2]
[372937667,1752814260614,-733.98,0.00017808,2]
[372937668,1752814260624,-866.64,0.00017808,2]
[372937669,1752814260634,-1531.18,0.00017808,2]
[372937670,1752814260643,-480.23,0.00017808,2]
[372937671,1752814260653,-794.47,0.00017808,2]
[372937672,1752814260662,-7082.82,0.00017808,2]
[372937673,1752814260671,-460.0,0.00017808,2]
[372937674,1752814260681,-2241.65,0.00017808,2]
[372937675,1752814260690,-2622.92,0.00017808,2]
[372937676,1752814260700,-5019.62,0.00017808,2]
[372937677,1752814260709,-460.0,0.00017808,2]
[372937678,1752814260720,-460.0,0.00017808,2]
[372937679,1752814260729,-460.0,0.00017808,2]
[372937680,1752814260739,-1971.19494829,0.00017828,2]
[372937681,1752814260749,-1500.0,0.00017868,2]
[372937682,1752814260763,-500.0,0.00017868,2]
[372937683,1752814260772,-500.0,0.00017873,2]
[372937684,1752814260782,-151.0,0.000179,2]
[372937685,1752814260795,-1732.50140007,0.00017982,2]
[372937686,1752814260804,-1500.0,0.00018068,2]
[372937687,1752814260813,-680.07601105,0.00018068,2]
[372937688,1752814260823,-500.0,0.00018068,2]
[372937689,1752814260833,-460.0,0.00018082,2]
[372937690,1752814260843,-460.0,0.00018082,2]
[372937691,1752814260854,-460.0,0.00018082,2]
[372937692,1752814260865,-460.0,0.00018082,2]
[372937693,1752814260875,-460.0,0.00018082,2]
[372937694,1752814260885,-460.0,0.00018082,2]
[372937695,1752814260895,-255.15088434,0.00018082,2]
[372937696,1752814260905,-271.0987992,0.00018082,2]
[372937697,1752814260914,-460.0,0.00018082,2]
[372937698,1752814260924,-460.0,0.00018082,2]
[372937699,1752814260934,-460.0,0.00018082,2]
[372937700,1752814260943,-460.0,0.00018082,2]
[372937701,1752814260954,-617.58,0.00018082,2]
[372937702,1752814260965,-460.0,0.00018082,2]
[372937703,1752814260976,-460.0,0.00018082,2]
[372937704,1752814260986,-460.0,0.00018082,2]
[372937705,1752814260995,-460.0,0.00018082,2]
[372937706,1752814261004,-460.0,0.00018082,2]
[372937707,1752814261013,-962.22,0.00018082,2]
[372937708,1752814261024,-460.0,0.00018082,2]
[372937709,1752814261034,-996.21,0.00018082,2]
[372937710,1752814261043,-460.0,0.00018082,2]
[372937711,1752814261052,-460.0,0.00018082,2]
[372937712,1752814261061,-460.0,0.00018082,2]
[372937713,1752814261071,-504.97,0.00018082,2]
[372937714,1752814261080,-460.0,0.00018082,2]
[372937715,1752814261090,-460.0,0.00018082,2]
[372937716,1752814261100,-460.0,0.00018082,2]
[372937717,1752814261110,-460.0,0.00018082,2]
[372937718,1752814261119,-460.0,0.00018082,2]
[372937719,1752814261128,-460.0,0.00018082,2]
[372937720,1752814261138,-460.0,0.00018082,2]
[372937721,1752814261148,-460.0,0.00018082,2]
[372937722,1752814261157,-153.40204311,0.00018082,2]
[372937723,1752814261166,-460.0,0.00018082,2]
[372937724,1752814261175,-471.94,0.00018082,2]
[372937725,1752814261186,-557.15,0.00018082,2]
[372937726,1752814261204,-460.0,0.00018082,2]
[372937727,1752814261222,-460.0,0.00018082,2]
[372937728,1752814261236,-633.99,0.00018082,2]
[372937729,1752814261251,-460.0,0.00018082,2]
[372937730,1752814261267,-480.02,0.00018082,2]
[372937731,1752814261282,-460.0,0.00018082,2]
[372937732,1752814261299,-497.13968117,0.00018082,2]
[372937733,1752814261313,-745.89,0.00018082,2]
[372937734,1752814261328,-907.33,0.00018082,2]
[372937735,1752814261343,-638.44,0.00018082,2]
[372937736,1752814261358,-1126.45,0.00018082,2]
[372937737,1752814261371,-902.44,0.00018082,2]
[372937738,1752814261385,-460.0,0.00018082,2]
[372937739,1752814261397,-460.0,0.00018082,2]
[372937740,1752814261412,-686.15,0.00018082,2]
[372937741,1752814261428,-460.0,0.00018082,2]
[372937742,1752814261443,-460.0,0.00018082,2]
[372937743,1752814261459,-460.0,0.00018082,2]
[372937744,1752814261473,-547.63804889,0.00018082,2]
[372937745,1752814261485,-460.0,0.00018082,2]
[372937746,1752814261502,-654.1,0.00018082,2]
[372937747,1752814261517,-555.02,0.00018082,2]
[372937748,1752814261529,-712.9,0.00018082,2]
[372937749,1752814261544,-563.48650561,0.00018082,2]
[372937750,1752814261557,-465.47,0.00018082,2]
[372937751,1752814261568,-460.0,0.00018082,2]
[372937752,1752814261581,-462.34,0.00018082,2]
[372937753,1752814261595,-460.0,0.00018082,2]
[372937754,1752814261607,-460.0,0.00018082,2]
[372937755,1752814261620,-683.36,0.00018082,2]
[372937756,1752814261633,-342.68058391,0.00018082,2]
[372937757,1752814261645,-2418.55,0.00018082,2]
[372937758,1752814261658,-227.38839095,0.00018082,2]
[372937759,1752814261670,-1045.61,0.00018082,2]
[372937760,1752814261682,-538.01,0.00018082,2]
[372937761,1752814261695,-460.0,0.00018082,2]
[372937762,1752814261708,-460.0,0.00018082,2]
[372937763,1752814261724,-271.67112625,0.00018082,2]
[372937764,1752814261736,-460.0,0.00018082,2]
[372937765,1752814261749,-560.07,0.00018082,2]
[372937766,1752814261767,-460.0,0.00018082,2]
[372937767,1752814261780,-269.99208042,0.00018082,2]
[372937768,1752814261794,-686.49,0.00018082,2]
[372937769,1752814261808,-460.0,0.00018082,2]
[372937770,1752814261821,-460.0,0.00018082,2]
[372937771,1752814261833,-460.0,0.00018082,2]
[372937772,1752814261845,-460.0,0.00018082,2]
[372937773,1752814261859,-883.96,0.00018082,2]
[372937774,1752814261873,-460.0,0.00018082,2]
[372937775,1752814261885,-460.0,0.00018082,2]
[372937776,1752814261897,-460.0,0.00018082,2]
[372937777,1752814261910,-460.0,0.00018082,2]
[372937778,1752814261923,-460.0,0.00018082,2]
[372937779,1752814261936,-1347.37,0.00018082,2]
[372937780,1752814261948,-951.1,0.00018082,2]
[372937781,1752814261960,-460.0,0.00018082,2]
[372937782,1752814261974,-642.72,0.00018082,2]
[372937783,1752814261987,-460.0,0.00018082,2]
[372937784,1752814262000,-460.0,0.00018082,2]
[372937785,1752814262012,-460.0,0.00018082,2]
[372937786,1752814262025,-460.0,0.00018082,2]
[372937787,1752814262037,-460.0,0.00018082,2]
[372937788,1752814262050,-460.0,0.00018082,2]
[372937789,1752814262062,-460.0,0.00018082,2]
[372937790,1752814262074,-855.25,0.00018082,2]
[372937791,1752814262087,-618.09,0.00018082,2]
[372937792,1752814262099,-460.0,0.00018082,2]
[372937793,1752814262112,-4686.52,0.00018082,2]
[372937794,1752814262126,-460.0,0.00018082,2]
[372937795,1752814262140,-460.0,0.00018082,2]
[372937796,1752814262155,-723.7,0.00018082,2]
[372937797,1752814262167,-460.0,0.00018082,2]
[372937798,1752814262179,-460.0,0.00018082,2]
[372937799,1752814262191,-460.0,0.00018082,2]
[372937800,1752814262203,-460.0,0.00018082,2]
[372937801,1752814262216,-460.0,0.00018082,2]
[372937802,1752814262230,-460.0,0.00018082,2]
[372937803,1752814262243,-460.0,0.00018082,2]
[372937804,1752814262256,-460.0,0.00018082,2]
[372937805,1752814262270,-1372.5,0.00018082,2]
[372937806,1752814262282,-460.0,0.00018082,2]
[372937807,1752814262295,-898.43,0.00018082,2]
[372937808,1752814262308,-3275.21,0.00018082,2]
[372937809,1752814262320,-3660.04,0.00018082,2]
[372937810,1752814262332,-1144.81,0.00018082,2]
[372937811,1752814262343,-460.0,0.00018082,2]
[372937812,1752814262356,-460.0,0.00018082,2]
[372937813,1752814262368,-908.6,0.00018082,2]
[372937814,1752814262380,-460.0,0.00018082,2]
[372937815,1752814262392,-899.51,0.00018082,2]
[372937816,1752814262405,-460.0,0.00018082,2]
[372937817,1752814262418,-460.0,0.00018082,2]
[372937818,1752814262430,-460.0,0.00018082,2]
[372937819,1752814262442,-884.48,0.00018082,2]
[372937820,1752814262456,-460.0,0.00018082,2]
[372937821,1752814262467,-965.48,0.00018082,2]
[372937822,1752814262479,-888.06,0.00018082,2]
[372937823,1752814262609,-766.66,0.00018082,2]
[372937824,1752814262663,-460.0,0.00018082,2]
[372937825,1752814262672,-460.0,0.00018082,2]
[372937826,1752814262682,-460.0,0.00018082,2]
[372937827,1752814262691,-1451.87,0.00018082,2]
[372937828,1752814262701,-465.31300322,0.00018082,2]
[372937829,1752814262712,-460.0,0.00018082,2]
[372937830,1752814262725,-580.54802677,0.00018082,2]
[372937831,1752814262736,-243.61936132,0.00018082,2]
[372937832,1752814262745,-789.94,0.00018082,2]
[372937833,1752814262759,-1037.24,0.00018082,2]
[372937834,1752814262769,-3558.83,0.00018082,2]
[372937835,1752814262780,-460.0,0.00018082,2]
[372937836,1752814262791,-652.7,0.00018082,2]
[372937837,1752814262801,-460.0,0.00018082,2]
[372937838,1752814262810,-460.0,0.00018082,2]
[372937839,1752814262820,-5829.63,0.00018082,2]
[372937840,1752814262830,-460.0,0.00018082,2]
[372937841,1752814262841,-460.0,0.00018082,2]
[372937842,1752814262851,-2475.6,0.00018082,2]
[372937843,1752814262861,-460.0,0.00018082,2]